bitfinex/quotes_ETHUSD_20250319
["timestamp","ask_amount","ask_price","bid_price","bid_amount"]
[1742393060343,4.93813,2025.1,2024.6,3.0]
[1742393060542,4.93813,2025.1,2024.7,4.93894]
[1742393060959,14.6297331,2025.2,2024.8,4.93874]
[1742393061354,9.87578,2025.2,2024.8,4.98798253]
[1742393061560,4.9378,2025.2,2024.9,0.3094]
[1742393061749,4.93803,2025.1,2024.9,0.3094]
[1742393062073,4.93803,2025.1,2024.8,4.9386]
[1742393062239,9.87623,2025.1,2024.7,5.24838]
[1742393062439,4.93803,2025.1,2024.7,5.24832]
[1742393062747,4.93786,2025.2,2024.9,4.9385]
[1742393062947,10.1850431,2025.5,2024.9,4.9385]
[1742393062948,0.7695,2025.5,2025.1,4.938]
[1742393063149,4.93741,2025.4,2025.0,4.93814]
[1742393063371,4.93741,2025.4,2024.9,5.429]
[1742393063552,5.70662,2025.5,2025.1,4.93787]
[1742393063760,4.93712,2025.5,2025.2,4.93769]
[1742393063970,5.5383431,2025.8,2025.2,5.24717]
[1742393064280,4.93694,2025.6,2025.2,10.1848]
[1742393064479,4.93694,2025.6,2025.2,5.24703]
[1742393064676,4.93694,2025.6,2025.3,4.93752]
[1742393064875,4.93705,2025.5,2025.2,5.24706]
[1742393065196,4.93666,2025.7,2025.3,4.93739]
[1742393065400,9.87337,2025.7,2025.3,10.36639]
[1742393065557,4.93698,2025.6,2025.3,5.429]
[1742393065759,4.9369,2025.6,2025.3,13.36652]
[1742393066165,4.93663,2025.7,2025.3,13.36652]
[1742393066376,10.4746931,2025.8,2025.4,4.93715]
[1742393066377,5.72065,2025.8,2025.4,4.93715]
[1742393066585,4.93659,2025.7,2025.4,4.93726]
[1742393066756,4.93659,2025.7,2025.3,13.36638]
[1742393066954,9.87389,2025.6,2025.3,8.429]
[1742393067267,4.93729,2025.4,2025.3,5.429]
[1742393067686,4.93766,2025.3,2025.0,8.428]
[1742393068255,4.93714,2025.5,2025.1,4.93801]
[1742393068507,4.93714,2025.5,2025.2,4.93775]
[1742393069001,4.93668,2025.7,2025.3,5.24685]
[1742393069201,4.93693,2025.6,2025.3,0.3094]
[1742393069370,4.93714,2025.5,2025.1,5.24739]
[1742393069562,4.93735,2025.4,2025.0,13.36621]
[1742393069804,4.93705,2025.5,2025.1,4.93784]
[1742393070023,10.4746731,2025.8,2025.3,4.93741]
[1742393070166,4.93691,2025.6,2025.2,9.87543]
[1742393070509,4.93691,2025.6,2025.2,4.93758]
[1742393070704,4.93691,2025.6,2025.1,0.55]
[1742393070873,4.93743,2025.4,2025.2,3.0]
[1742393071076,4.93743,2025.4,2025.1,3.0]
[1742393071293,9.51340708,2025.3,2024.9,0.3094]
[1742393071495,9.51340708,2025.3,2025.0,10.36522]
[1742393071706,4.57584708,2025.3,2025.0,10.36522]
[1742393072193,9.51329708,2025.4,2025.0,10.36512]
[1742393072412,9.51329708,2025.4,2025.0,15.30327]
[1742393072588,4.57584708,2025.4,2025.1,4.93802]
[1742393072778,9.51322708,2025.4,2025.0,10.36512]
[1742393072975,4.93755,2025.3,2025.0,5.427]
[1742393073175,4.93802,2025.1,2024.7,7.93892]
[1742393073428,4.57584708,2025.2,2024.7,7.93892]
[1742393073429,4.57584708,2025.0,2024.8,10.36459]
[1742393073801,4.57584708,2025.0,2024.7,3.0]
[1742393074005,4.57584708,2025.0,2024.7,5.426]
[1742393074235,4.57584708,2025.0,2024.7,10.36499]
[1742393074440,9.51368708,2025.2,2024.8,4.93872]
[1742393074642,9.51368708,2025.2,2024.8,4.93862]
[1742393074797,4.57584708,2025.2,2024.9,4.9383]
[1742393074997,9.51365708,2025.2,2024.9,4.9383]
[1742393075336,9.51318708,2025.4,2025.0,4.93824]
[1742393075635,4.57584708,2025.2,2024.8,4.93863]
[1742393075944,4.57584708,2025.2,2024.9,4.93835]
[1742393076143,4.9387,2024.9,2024.7,5.426]
[1742393076634,5.39654708,2025.0,2024.6,13.36517]
[1742393076845,10.33484708,2025.0,2024.7,4.93884]
[1742393077145,9.51383708,2025.2,2024.8,4.93862]
[1742393077294,10.54255079,2025.2,2024.8,4.93859]
[1742393077639,4.57584708,2025.2,2024.8,5.24812]
[1742393077791,4.57584708,2025.2,2024.9,4.93838]
[1742393078236,4.57584708,2025.2,2025.0,10.36423]
[1742393078443,4.93732,2025.4,2025.1,4.93793]
[1742393078444,4.57584708,2025.4,2025.1,4.93793]
[1742393078735,4.57584708,2025.4,2025.2,4.93777]
[1742393079091,10.30125708,2025.6,2025.3,4.93754]
[1742393079421,4.57584708,2025.4,2025.1,5.24741]
[1742393079722,4.57584708,2025.4,2025.1,10.18528]
[1742393080425,9.51323708,2025.4,2025.1,5.24727]
[1742393080719,4.57584708,2025.4,2025.2,4.93776]
[1742393080920,4.9366,2025.7,2025.1,5.2474]
[1742393080921,9.51244708,2025.7,2025.3,4.93735]
[1742393081123,14.44924708,2025.7,2025.3,4.93735]
[1742393081506,4.57584708,2025.5,2025.3,4.93735]
[1742393081821,4.57584708,2025.7,2025.4,10.36229]
[1742393082025,9.51249708,2025.7,2025.4,5.425]
[1742393082197,4.57584708,2025.5,2025.4,5.425]
[1742393082797,9.51298708,2025.5,2025.3,5.425]
[1742393083295,4.93729,2025.4,2025.3,5.425]
[1742393083520,4.93729,2025.4,2024.8,0.55]
[1742393083521,4.93754,2025.3,2025.0,3.0]
[1742393083836,4.57584708,2025.1,2025.0,8.425]
[1742393084019,4.57584708,2025.1,2024.7,0.3094]
[1742393084197,0.8154,2025.4,2024.7,5.425]
[1742393084198,9.51457708,2024.9,2024.7,5.425]
[1742393084551,4.93879,2024.8,2024.4,5.7334]
[1742393084731,4.57584708,2024.7,2024.5,7.93941]
[1742393085026,4.57584708,2024.9,2024.8,4.93875]
[1742393085219,4.57584708,2024.9,2024.6,4.93917]
[1742393085425,4.57584708,2024.9,2024.7,4.93885]
[1742393085829,4.57584708,2024.9,2024.8,4.93875]
[1742393086026,4.57584708,2024.9,2024.6,4.93924]
[1742393086324,4.57584708,2024.7,2024.6,4.9391]
[1742393086631,4.57584708,2024.7,2024.5,12.87869]
[1742393086799,4.57584708,2024.7,2024.5,7.93933]
[1742393087595,4.57584708,2024.7,2024.5,3.0]
[1742393087797,4.57584708,2024.7,2024.6,4.93924]
[1742393087997,4.57584708,2024.9,2024.6,0.3094]
[1742393088224,4.57584708,2024.9,2024.8,4.93875]
[1742393088530,4.57584708,2024.9,2024.8,10.36275]
[1742393088697,4.57584708,2024.9,2024.8,5.424]
[1742393089110,9.51435708,2024.9,2024.8,5.424]
[1742393089313,4.57584708,2024.9,2024.8,5.424]
[1742393089626,9.51435708,2024.9,2024.8,5.424]
[1742393089821,4.57584708,2024.9,2024.8,5.424]
[1742393090743,9.51435708,2024.9,2024.8,5.424]
[1742393090925,4.57584708,2024.9,2024.8,5.424]
[1742393091246,9.51435708,2024.9,2024.8,5.424]
[1742393091443,9.51435708,2024.9,2024.5,3.0]
[1742393091444,4.93918,2024.7,2024.5,3.0]
[1742393091650,4.57584708,2024.6,2024.5,3.0]
[1742393092556,0.8238,2024.9,2024.6,4.9391]
[1742393092851,4.57584708,2024.7,2024.6,4.9391]
[1742393093050,5.39964708,2024.9,2024.6,4.9391]
[1742393093352,4.57584708,2024.9,2024.7,4.93891]
[1742393093650,4.57584708,2024.9,2024.7,4.93889]
[1742393093854,4.57584708,2024.9,2024.8,4.93875]
[1742393094057,4.57584708,2024.9,2024.7,9.87774]
[1742393094249,4.57584708,2024.9,2024.7,4.93884]
[1742393094762,4.93878,2024.8,2024.5,7.93933]
[1742393094922,4.57584708,2024.7,2024.5,7.93933]
[1742393095131,4.57584708,2024.7,2024.5,3.0]
[1742393095662,9.51494708,2024.7,2024.5,3.0]
[1742393096032,4.57584708,2024.7,2024.5,3.0]
[1742393096360,4.57584708,2024.7,2024.6,4.93924]
[1742393097033,5.69223,2025.1,2024.7,4.93878]
[1742393097034,4.57584708,2024.9,2024.7,4.93878]
[1742393097262,9.51446708,2024.9,2024.5,7.93941]
[1742393097460,4.57584708,2024.6,2024.5,7.93941]
[1742393098151,4.57584708,2024.6,2024.5,3.0]
[1742393098662,4.57584708,2024.6,2024.5,7.93949]
[1742393098833,4.57584708,2024.6,2024.5,3.0]
[1742393099025,4.57584708,2024.6,2024.1,5.24966]
[1742393099232,4.57584708,2024.2,2024.1,4.94026]
[1742393099430,4.57584708,2024.2,2024.1,10.36326]
[1742393099667,4.57584708,2024.2,2023.9,10.19111]
[1742393099867,4.57584708,2024.2,2024.0,10.36355]
[1742393100060,4.57584708,2024.2,2024.1,3.0]
[1742393100263,4.57584708,2024.2,2024.1,7.94046]
[1742393100447,4.57584708,2024.4,2024.2,4.94007]
[1742393100649,4.57584708,2024.4,2024.3,4.93997]
[1742393101031,4.57584708,2024.4,2024.1,5.24983]
[1742393101232,4.57584708,2024.4,2023.6,1.52541899]
[1742393101233,4.57584708,2024.2,2023.6,0.3094]
[1742393101448,4.57584708,2023.7,2023.5,4.94176]
[1742393101761,4.57584708,2023.9,2023.8,4.94119]
[1742393102164,4.57584708,2023.9,2023.8,10.36319]
[1742393102555,4.57584708,2024.2,2023.9,4.9408]
[1742393102781,4.57584708,2024.0,2023.8,10.36295]
[1742393102951,4.57584708,2024.2,2024.1,4.94041]
[1742393103361,4.57584708,2024.2,2024.0,4.94071]
[1742393103554,9.51618708,2024.2,2023.8,15.30422]
[1742393103765,0.8112,2024.4,2024.2,4.94022]
[1742393103766,4.57584708,2024.4,2024.2,4.94022]
[1742393103965,4.57584708,2024.4,2024.2,4.94013]
[1742393104570,4.57584708,2024.4,2024.2,10.3621]
[1742393104763,4.57584708,2024.4,2024.3,4.93997]
[1742393104984,4.57584708,2024.4,2024.2,10.3621]
[1742393105170,4.93997,2024.3,2023.8,7.94113]
[1742393105354,4.57584708,2024.1,2023.8,15.30416]
[1742393105548,4.57584708,2024.1,2023.9,4.94084]
[1742393105749,4.57584708,2024.3,2024.0,4.9407]
[1742393106054,4.57584708,2024.3,2024.1,4.94045]
[1742393106249,4.57584708,2024.3,2024.1,4.94032]
[1742393106577,4.57584708,2024.3,2024.1,4.94029]
[1742393106751,0.8117,2024.7,2024.1,4.94029]
[1742393106752,4.57584708,2024.5,2024.4,4.93973]
[1742393107159,0.8117,2024.7,2024.6,4.93924]
[1742393107160,4.57584708,2024.7,2024.6,4.93924]
[1742393107380,4.57584708,2024.8,2024.7,4.939]
[1742393107763,4.57584708,2024.8,2024.7,10.361]
[1742393108360,4.57584708,2025.0,2024.9,4.93851]
[1742393108561,4.57584708,2025.0,2024.8,4.93855]
[1742393108562,5.73466,2025.5,2024.8,3.8594]
[1742393108760,4.57584708,2025.1,2024.8,5.24805]
[1742393108973,4.57584708,2025.1,2024.6,3.0]
[1742393108974,4.57584708,2024.9,2024.6,4.93911]
[1742393109178,4.93836,2025.0,2024.8,5.422]
[1742393109384,4.57584708,2024.9,2024.8,10.36066]
[1742393109604,0.7599,2025.3,2025.1,4.93796]
[1742393109903,0.37984457,2025.7,2024.9,4.93839]
[1742393109904,4.57584708,2025.5,2025.3,4.93736]
[1742393110065,4.57584708,2025.5,2025.4,4.93729]
[1742393110266,4.57584708,2025.5,2025.3,4.93736]
[1742393110473,4.57584708,2025.5,2025.4,4.93729]
[1742393110694,5.34144708,2025.7,2025.5,4.93692]
[1742393110883,4.57584708,2025.7,2025.6,4.9368]
[1742393111078,5.34144708,2026.0,2025.8,4.93617]
[1742393111287,4.57584708,2026.0,2025.8,4.93617]
[1742393111485,4.9362,2025.9,2025.6,5.421]
[1742393111684,4.57584708,2025.7,2025.3,5.421]
[1742393111885,9.51314708,2025.4,2025.0,10.3591]
[1742393112086,4.57584708,2025.2,2025.0,10.3591]
[1742393112282,4.57584708,2025.3,2025.0,10.3591]
[1742393112468,4.57584708,2025.1,2025.0,5.421]
[1742393112805,0.7507,2025.3,2025.0,10.35927]
[1742393112806,4.57584708,2025.2,2025.0,10.35927]
[1742393112974,4.57584708,2025.2,2025.0,5.421]
[1742393113173,4.57584708,2025.2,2025.0,4.93825]
[1742393113373,4.57584708,2025.2,2025.0,4.93816]
[1742393113791,4.57584708,2025.2,2025.0,4.93807]
[1742393114003,4.57584708,2025.2,2025.1,4.93802]
[1742393114500,0.7507,2025.3,2025.1,4.93792]
[1742393114700,4.57584708,2025.3,2025.1,4.93792]
[1742393114906,4.57584708,2025.3,2025.0,4.93826]
[1742393115216,4.57584708,2025.3,2025.1,4.93799]
[1742393115600,4.57584708,2025.3,2025.2,4.93778]
[1742393115987,10.64274,2025.6,2025.1,4.93799]
[1742393115988,4.57584708,2025.5,2025.1,5.42]
[1742393116184,0.7934,2025.8,2025.0,0.3094]
[1742393116376,4.57584708,2025.2,2025.1,10.35784]
[1742393116583,4.57584708,2025.2,2025.1,5.42]
[1742393116782,9.51362708,2025.2,2025.1,5.42]
[1742393117003,4.57584708,2025.2,2024.8,10.35872]
[1742393117203,4.57584708,2025.2,2024.8,10.35856]
[1742393117403,4.57584708,2025.2,2024.9,4.93829]
[1742393117603,4.57584708,2025.2,2025.0,4.93806]
[1742393118116,4.57584708,2025.2,2025.0,4.93823]
[1742393118296,4.57584708,2025.2,2025.1,4.93802]
[1742393119205,4.57584708,2025.2,2025.0,4.93823]
[1742393120004,4.57584708,2025.2,2025.0,4.93807]
[1742393120389,9.51383708,2025.2,2024.8,4.93875]
[1742393120593,4.57584708,2024.9,2024.8,5.419]
[1742393120797,4.57584708,2024.9,2024.7,5.419]
[1742393121001,4.57584708,2024.9,2024.7,15.29664]
[1742393121203,4.57584708,2025.1,2024.9,4.93851]
[1742393121591,5.37954708,2025.3,2025.0,4.93827]
[1742393121825,4.57584708,2025.1,2024.9,4.9385]
[1742393122127,4.57584708,2025.1,2024.9,9.87678]
[1742393122319,4.57584708,2025.1,2025.0,4.93827]
[1742393122621,4.57584708,2025.1,2024.8,7.93867]
[1742393122817,4.57584708,2024.9,2024.5,0.3094]
[1742393123121,4.57584708,2024.9,2024.2,4.94003]
[1742393123122,4.57584708,2024.6,2024.3,5.24919]
[1742393123426,0.805,2024.9,2024.2,5.418]
[1742393123427,4.57584708,2024.4,2024.2,5.418]
[1742393123627,4.57584708,2024.4,2024.0,5.418]
[1742393123628,6.33239479,2024.4,2024.0,5.418]
[1742393123933,4.57584708,2024.1,2023.5,5.25126]
[1742393124119,4.57584708,2023.7,2023.5,15.30168]
[1742393124299,4.57584708,2023.7,2023.5,5.418]
[1742393124716,9.51729708,2023.7,2023.5,5.418]
[1742393124922,9.51729708,2023.7,2023.4,5.418]
[1742393125216,4.94184,2023.6,2023.4,5.418]
[1742393125426,4.9423,2023.4,2023.2,0.36598227]
[1742393125626,4.57584708,2023.3,2023.2,0.36598227]
[1742393126451,4.57584708,2023.3,2022.7,5.25311]
[1742393126605,4.57584708,2022.9,2022.8,10.36262]
[1742393126810,9.51925708,2022.9,2022.6,5.30995227]
[1742393127014,0.7525,2023.4,2022.6,5.78498227]
[1742393127015,4.57584708,2022.7,2022.6,5.78498227]
[1742393127651,4.57584708,2022.7,2022.6,13.36313]
[1742393127827,4.57584708,2022.8,2022.7,3.0]
[1742393128010,4.57584708,2022.8,2022.6,10.36313]
[1742393128213,4.57584708,2022.8,2022.6,5.419]
[1742393128429,4.57584708,2022.8,2022.4,5.25388]
[1742393128430,4.57584708,2022.8,2022.4,4.94461]
[1742393128632,4.57584708,2022.8,2022.5,4.94415]
[1742393128831,4.57584708,2022.8,2022.7,4.94388]
[1742393129032,4.57584708,2023.0,2022.8,4.94348]
[1742393129232,4.94239,2023.4,2022.9,4.94339]
[1742393129436,4.57584708,2023.3,2022.7,5.7274]
[1742393129638,0.7564,2023.5,2022.7,5.7274]
[1742393129639,4.57584708,2023.2,2023.0,4.94315]
[1742393129914,4.57584708,2023.2,2023.0,9.88618]
[1742393130115,4.57584708,2023.2,2023.0,4.94303]
[1742393130331,4.57584708,2023.2,2023.1,4.9429]
[1742393130547,4.57584708,2023.4,2023.2,4.94255]
[1742393130746,4.57584708,2023.4,2023.3,4.94242]
[1742393130944,1.52635071,2023.7,2023.6,4.94168]
[1742393130945,4.57584708,2023.7,2023.6,4.94168]
[1742393131110,4.57584708,2023.8,2023.6,4.94154]
[1742393131526,4.57584708,2023.8,2023.6,9.8831]
[1742393131721,4.57584708,2023.8,2023.5,10.36092]
[1742393131921,4.57584708,2023.8,2023.5,15.30267]
[1742393132268,4.57584708,2023.8,2023.5,10.36075]
[1742393132968,0.7892,2024.1,2023.7,4.94144]
[1742393133115,0.51736426,2027.9,2023.8,4.94119]
[1742393133116,0.8285,2025.1,2023.8,4.94119]
[1742393133319,4.57584708,2024.5,2024.2,7.94021]
[1742393133511,4.57584708,2024.5,2024.2,7.94004]
[1742393133745,4.57584708,2024.3,2024.1,4.94042]
[1742393133921,4.57584708,2024.3,2024.1,3.0]
[1742393134235,3.0,2024.1,2023.8,3.0]
[1742393134435,4.57584708,2023.9,2023.8,13.36019]
[1742393134749,4.57584708,2024.3,2024.1,4.94044]
[1742393135158,4.57584708,2024.3,2024.0,4.94059]
[1742393135554,4.57584708,2024.1,2023.9,4.94095]
[1742393135853,4.57584708,2024.1,2023.8,5.419]
[1742393135854,10.28683708,2024.1,2023.8,5.419]
[1742393136170,5.34624708,2024.1,2023.8,10.36009]
[1742393136371,4.57584708,2024.1,2023.9,4.94083]
[1742393136720,4.57584708,2024.1,2023.9,4.94076]
[1742393136918,4.57584708,2024.1,2024.0,4.94071]
[1742393137146,4.57584708,2024.3,2024.1,4.94027]
[1742393137353,4.57584708,2024.3,2023.9,4.94089]
[1742393137530,4.57584708,2024.3,2023.8,10.36003]
[1742393137726,4.57584708,2024.3,2024.2,4.94022]
[1742393138138,4.57584708,2024.5,2024.3,4.93988]
[1742393138332,4.57584708,2024.5,2024.4,4.93973]
[1742393138533,4.57584708,2024.5,2024.3,4.93976]
[1742393138745,4.57584708,2024.5,2024.4,4.93973]
[1742393139000,4.57584708,2024.5,2024.3,4.93976]
[1742393139299,4.57584708,2024.5,2024.4,4.93973]
[1742393139511,4.57584708,2024.7,2024.6,4.93904]
[1742393139657,4.57584708,2024.7,2024.4,4.93952]
[1742393139863,4.57584708,2024.7,2024.5,4.93947]
[1742393140279,4.57584708,2025.0,2024.7,4.939]
[1742393140480,4.57584708,2025.0,2024.7,4.93878]
[1742393140789,0.10135767,2024.9,2024.7,4.93878]
[1742393140971,0.10135767,2024.9,2024.8,4.93875]
[1742393141371,4.57584708,2025.2,2025.0,4.93825]
[1742393141571,5.60721279,2025.2,2025.0,4.9381]
[1742393141771,3.520235,2025.0,2024.5,5.24885]
[1742393142068,4.57584708,2025.3,2024.5,3.3094]
[1742393142256,4.9379,2025.2,2024.8,4.93872]
[1742393142459,4.57584708,2025.1,2024.8,10.35672]
[1742393142695,4.57584708,2025.1,2024.8,10.35675]
[1742393142900,4.57584708,2025.3,2025.0,4.93817]
[1742393143093,4.57584708,2025.1,2024.8,10.35674]
[1742393143298,4.57584708,2025.1,2024.9,4.93851]
[1742393143675,4.57584708,2025.1,2024.9,4.93837]
[1742393143873,9.51346708,2025.3,2024.9,4.93837]
[1742393144096,16.01416142,2025.3,2024.9,4.93837]
[1742393144292,11.07643142,2025.3,2024.9,4.93837]
[1742393144694,3.7671,2025.8,2025.1,4.93794]
[1742393145002,4.93718,2025.5,2025.2,5.417]
[1742393145301,9.51326708,2025.4,2025.2,5.417]
[1742393145482,6.66376671,2025.3,2025.2,5.417]
[1742393145677,1.72622671,2025.3,2025.2,5.417]
[1742393145884,0.36375333,2025.9,2025.3,3.0]
[1742393145885,4.57584708,2025.7,2025.3,3.0]
[1742393146212,0.7749,2025.9,2025.4,4.93728]
[1742393146213,9.51229708,2025.8,2025.4,4.93728]
[1742393146502,4.57584708,2025.8,2025.5,4.93704]
[1742393146703,9.51218708,2025.8,2025.4,4.93729]
[1742393147005,4.93539,2026.2,2025.7,4.93656]
[1742393147006,4.57584708,2026.0,2025.7,4.93656]
[1742393147390,4.93612,2025.9,2025.6,10.35374]
[1742393147598,4.57584708,2025.8,2025.6,5.417]
[1742393147788,4.57584708,2025.8,2025.6,10.35367]
[1742393147989,0.10389351,2025.7,2025.6,15.29033]
[1742393148184,0.10389351,2025.7,2025.6,15.84033]
[1742393148382,4.93559,2026.1,2025.8,4.93618]
[1742393148579,3.22848871,2026.1,2025.8,4.93618]
[1742393148805,10.26929708,2026.2,2025.7,4.9365]
[1742393149003,4.57584708,2026.0,2025.6,4.93677]
[1742393149201,4.93596,2026.0,2025.7,5.416]
[1742393149418,5.416,2025.7,2025.4,5.416]
[1742393149623,4.57584708,2025.6,2025.4,5.416]
[1742393150412,9.51267708,2025.6,2025.3,5.415]
[1742393150793,4.57584708,2025.6,2025.3,10.35239]
[1742393150995,4.57584708,2025.6,2025.3,10.35238]
[1742393151203,5.38534708,2025.4,2024.9,4.93844]
[1742393151534,4.57584708,2025.2,2025.0,5.415]
[1742393151836,5.38534708,2025.4,2025.0,10.35326]
[1742393152134,4.57584708,2025.6,2025.3,4.93745]
[1742393152308,9.51266708,2025.6,2025.2,4.93772]
[1742393152518,4.93709,2025.5,2025.1,4.93801]
[1742393152702,4.57584708,2025.4,2025.1,4.9379]
[1742393152897,9.51321708,2025.4,2025.0,10.66266]
[1742393153111,9.51321708,2025.4,2025.0,4.93816]
[1742393153318,4.57584708,2025.2,2025.0,4.93816]
[1742393153531,4.57584708,2025.2,2025.0,10.35216]
[1742393154029,4.57584708,2025.2,2025.1,4.93802]
[1742393154182,9.51320708,2025.4,2025.0,10.35207]
[1742393154617,9.51320708,2025.4,2025.1,4.93794]
[1742393154824,4.57584708,2025.4,2025.1,4.93794]
[1742393155209,9.51325708,2025.4,2025.0,10.35207]
[1742393155410,9.51362708,2025.2,2025.0,5.414]
[1742393155601,5.36134708,2025.2,2024.9,13.35233]
[1742393155809,0.7855,2025.2,2025.0,4.93825]
[1742393156110,10.95826979,2025.4,2025.1,4.93802]
[1742393156111,4.57584708,2025.4,2025.1,4.93802]
[1742393156427,9.51322708,2025.4,2025.0,4.9382]
[1742393156587,9.51322708,2025.4,2025.0,9.87635]
[1742393156785,9.51322708,2025.4,2025.0,4.93817]
[1742393157185,9.51322708,2025.4,2025.0,9.87628]
[1742393157413,9.51322708,2025.4,2025.0,4.93811]
[1742393157612,5.36134708,2025.5,2024.9,13.66185]
[1742393157831,5.37134708,2025.7,2025.3,4.93732]
[1742393158152,5.37134708,2025.7,2025.4,5.413]
[1742393158303,5.37134708,2025.7,2025.4,10.35019]
[1742393158801,5.37134708,2025.7,2025.4,10.35021]
[1742393159107,5.37134708,2025.7,2025.4,5.413]
[1742393159305,4.93688,2025.6,2025.4,5.413]
[1742393159510,9.51289708,2025.5,2025.4,5.413]
[1742393159908,4.57584708,2025.5,2025.4,5.413]
[1742393160229,9.51289708,2025.5,2025.4,5.413]
[1742393160445,9.51289708,2025.5,2024.9,3.3094]
[1742393160446,4.93773,2025.3,2025.2,5.413]
[1742393160654,4.57584708,2025.5,2025.3,4.93745]
[1742393160814,15.24473708,2025.7,2025.3,4.93745]
[1742393161135,9.51233708,2025.8,2025.5,4.93695]
[1742393161331,4.57584708,2025.8,2025.6,4.93664]
[1742393161639,4.57584708,2025.8,2025.3,5.24691]
[1742393161640,4.57584708,2025.8,2025.5,4.93701]
[1742393161804,9.51218708,2025.8,2025.5,4.93701]
[1742393162128,4.57584708,2025.6,2025.4,4.93712]
[1742393162311,4.57584708,2025.6,2025.3,5.24685]
[1742393162506,9.51270708,2025.6,2025.2,10.35059]
[1742393162919,5.04149346,2025.5,2025.2,10.35059]
[1742393163110,0.10437346,2025.5,2025.4,4.93729]
[1742393163518,4.57584708,2025.8,2025.4,4.93729]
[1742393163729,4.57584708,2025.8,2025.6,4.9368]
[1742393163903,0.8066,2025.9,2025.6,4.93657]
[1742393164107,0.7731,2026.1,2025.6,4.9368]
[1742393164304,4.57584708,2026.3,2025.8,4.93614]
[1742393164650,4.57584708,2026.3,2025.7,5.412]
[1742393164811,4.57584708,2026.3,2026.0,4.93565]
[1742393165152,4.93449,2026.6,2026.2,4.93534]
[1742393165307,4.57584708,2026.5,2026.2,4.93525]
[1742393165720,4.57584708,2026.5,2026.3,4.93501]
[1742393165920,4.57584708,2026.7,2026.1,5.412]
[1742393166138,0.8069,2026.9,2026.1,10.3475]
[1742393166139,9.51058708,2026.5,2026.1,10.3475]
[1742393166325,9.51095708,2026.3,2026.1,5.412]
[1742393166527,4.93569,2026.1,2025.9,3.0]
[1742393166835,2.6415,2025.9,2025.5,5.411]
[1742393167008,4.57584708,2025.6,2025.5,5.411]
[1742393167203,4.57584708,2025.6,2025.3,4.93753]
[1742393167408,4.57584708,2025.4,2025.3,5.411]
[1742393167615,0.8301,2025.3,2024.4,5.24911]
[1742393167815,0.8301,2025.3,2024.8,4.93858]
[1742393167816,4.57584708,2024.9,2024.8,4.93858]
[1742393168004,4.57584708,2025.1,2024.8,4.9387]
[1742393168225,0.8301,2025.3,2025.2,4.93778]
[1742393168429,0.8133,2025.6,2025.0,5.411]
[1742393168736,4.93641,2025.8,2025.4,4.93728]
[1742393169037,5.38914708,2025.9,2025.5,5.46036597]
[1742393169249,10.32523708,2025.9,2025.6,4.93668]
[1742393169409,10.32523708,2025.9,2025.5,5.411]
[1742393169410,4.57584708,2025.7,2025.5,5.411]
[1742393169610,4.57584708,2025.7,2025.5,10.34789]
[1742393169810,4.57584708,2025.7,2025.5,5.411]
[1742393170111,4.57584708,2025.9,2025.6,4.93663]
[1742393170305,5.38934708,2026.1,2025.8,4.93632]
[1742393170528,5.38934708,2026.1,2025.6,3.0]
[1742393170728,0.8235,2026.8,2025.9,4.93597]
[1742393171044,4.93583,2026.0,2025.9,5.411]
[1742393171226,9.51165708,2026.1,2025.9,5.411]
[1742393171622,4.93583,2026.0,2025.9,5.411]
[1742393171806,4.93583,2026.0,2025.6,4.93676]
[1742393172013,0.8235,2026.3,2025.6,5.41]
[1742393172243,5.39934708,2026.3,2026.1,4.93548]
[1742393172528,4.57584708,2026.3,2026.0,10.34571]
[1742393173525,4.57584708,2026.3,2026.0,10.34566]
[1742393173836,14.44636708,2026.3,2026.0,5.41]
[1742393174143,9.51105708,2026.3,2026.0,5.41]
[1742393174441,9.51105708,2026.3,2025.9,4.93597]
[1742393174639,9.51105708,2026.3,2025.8,5.41]
[1742393174640,9.51154708,2026.1,2025.8,5.41]
[1742393174841,9.51191708,2025.9,2025.4,4.93729]
[1742393175136,4.57584708,2025.7,2025.5,5.41]
[1742393176212,4.57584708,2025.7,2025.5,10.34704]
[1742393176411,4.57584708,2025.7,2025.5,5.41]
[1742393177135,9.51193708,2025.9,2025.5,10.34704]
[1742393177318,4.57584708,2025.9,2025.5,5.41]
[1742393177519,4.93643,2025.8,2025.5,5.41]
[1742393177734,5.74155,2025.6,2025.2,4.93778]
[1742393177930,4.57584708,2025.5,2025.2,10.34678]
[1742393178133,4.57584708,2025.3,2025.0,4.93825]
[1742393178442,4.93746,2025.4,2025.1,4.938]
[1742393178443,0.09585508,2025.4,2025.1,4.938]
[1742393178645,0.09539469,2025.2,2025.1,4.938]
[1742393178968,0.09537703,2025.2,2025.1,4.938]
[1742393179146,5.74159,2025.6,2025.1,4.93792]
[1742393179344,5.71737,2025.9,2025.5,4.93705]
[1742393179546,0.7812,2025.9,2025.5,4.93705]
[1742393179720,5.7174,2025.9,2025.5,4.93705]
[1742393179915,4.93632,2025.8,2025.4,5.409]
[1742393180218,4.93656,2025.7,2025.4,5.409]
[1742393180418,4.93647,2025.8,2025.4,10.34628]
[1742393180833,4.93647,2025.8,2025.4,5.409]
[1742393181037,9.87343,2025.7,2025.4,5.409]
[1742393181353,4.93667,2025.7,2025.4,5.409]
[1742393181842,0.7812,2025.9,2025.4,5.409]
[1742393182044,4.93692,2025.6,2025.4,5.409]
[1742393182219,4.9376,2025.3,2025.1,5.409]
[1742393183142,9.87536,2025.3,2025.1,5.409]
[1742393183550,4.93793,2025.2,2024.7,4.93899]
[1742393183747,5.511933,2025.2,2024.4,5.24908]
[1742393183969,4.93852,2024.9,2024.5,5.409]
[1742393184156,4.93879,2024.8,2024.5,5.409]
[1742393184320,0.8214,2025.1,2024.6,0.55]
[1742393184652,4.93866,2024.9,2024.5,5.409]
[1742393185075,4.93827,2025.0,2024.5,15.28762]